[Event "Titled Tuesday Blitz August 15 Early 2023"]
[White "Ginzburg, Yakov"]
[Black "Winkels, Marcel"]
[WhiteFideId "4157176"]
[BlackFideId "1003887"]
[WhiteElo "2531"]
[BlackElo "2076"]
[Result "1-0"]
[Round "1"]
[TimeControl "180+1"]
[Date "2023.08.15"]
[WhiteClock "0:00:16"]
[BlackClock "0:00:00"]
[Board "218"]

1. e4 {[%clk 0:03:00]}  c5 {[%clk 0:03:00]} 2. Nf3 {[%clk 0:02:59]}  e6 {[%clk 0:02:56]} 3. Be2 {[%clk 0:02:55]}  Nc6 {[%clk 0:02:54]} 4. O-O {[%clk 0:02:53]}  Nf6 {[%clk 0:02:53]} 5. Nc3 {[%clk 0:02:52]}  d6 {[%clk 0:02:52]} 6. d4 {[%clk 0:02:52]}  cxd4 {[%clk 0:02:52]} 7. Nxd4 {[%clk 0:02:51]}  a6 {[%clk 0:02:52]} 8. Be3 {[%clk 0:02:51]}  Be7 {[%clk 0:02:51]} 9. a4 {[%clk 0:02:51]}  O-O {[%clk 0:02:46]} 10. f4 {[%clk 0:02:48]}  Qc7 {[%clk 0:02:40]} 11. g4 {[%clk 0:02:46]}  Nxd4 {[%clk 0:02:09]} 12. Bxd4 {[%clk 0:02:43]}  e5 {[%clk 0:02:07]} 13. Be3 {[%clk 0:02:41]}  exf4 {[%clk 0:02:06]} 14. Bxf4 {[%clk 0:02:39]}  Be6 {[%clk 0:02:06]} 15. g5 {[%clk 0:02:19]}  Nd7 {[%clk 0:01:54]} 16. Qd4 {[%clk 0:02:18]}  Qb6 {[%clk 0:01:44]} 17. Rad1 {[%clk 0:02:14]}  Qxd4+ {[%clk 0:01:40]} 18. Rxd4 {[%clk 0:02:11]}  Ne5 {[%clk 0:01:40]} 19. Nd5 {[%clk 0:02:07]}  Bxd5 {[%clk 0:01:38]} 20. Rxd5 {[%clk 0:02:08]}  Rfd8 {[%clk 0:01:29]} 21. c3 {[%clk 0:01:52]}  Ng6 {[%clk 0:01:22]} 22. Bg3 {[%clk 0:01:49]}  Rac8 {[%clk 0:01:18]} 23. Rfd1 {[%clk 0:01:46]}  Kf8 {[%clk 0:01:00]} 24. h4 {[%clk 0:01:40]}  Ke8 {[%clk 0:00:56]} 25. Bg4 {[%clk 0:01:23]}  Rc6 {[%clk 0:00:54]} 26. Kf2 {[%clk 0:01:11]}  Nf8 {[%clk 0:00:51]} 27. e5 {[%clk 0:00:53]}  dxe5 {[%clk 0:00:47]} 28. Rxd8+ {[%clk 0:00:52]}  Bxd8 {[%clk 0:00:44]} 29. Bxe5 {[%clk 0:00:53]}  f6 {[%clk 0:00:40]} 30. Bd4 {[%clk 0:00:45]}  fxg5 {[%clk 0:00:35]} 31. Bxg7 {[%clk 0:00:41]}  Ng6 {[%clk 0:00:28]} 32. Bd7+ {[%clk 0:00:34]}  Ke7 {[%clk 0:00:26]} 33. Bxc6 {[%clk 0:00:34]}  bxc6 {[%clk 0:00:26]} 34. hxg5 {[%clk 0:00:34]}  Bb6+ {[%clk 0:00:23]} 35. Bd4 {[%clk 0:00:33]}  c5 {[%clk 0:00:23]} 36. a5 {[%clk 0:00:29]}  Ba7 {[%clk 0:00:22]} 37. Be3 {[%clk 0:00:28]}  Ne5 {[%clk 0:00:17]} 38. Rh1 {[%clk 0:00:24]}  Ng4+ {[%clk 0:00:16]} 39. Kf3 {[%clk 0:00:24]}  Nxe3 {[%clk 0:00:16]} 40. Kxe3 {[%clk 0:00:23]}  c4+ {[%clk 0:00:16]} 41. Ke4 {[%clk 0:00:23]}  Bc5 {[%clk 0:00:16]} 42. Rxh7+ {[%clk 0:00:23]}  Ke6 {[%clk 0:00:16]} 43. Rh6+ {[%clk 0:00:22]}  Kf7 {[%clk 0:00:16]} 44. Rxa6 {[%clk 0:00:23]}  Bf2 {[%clk 0:00:07]} 45. Kf5 {[%clk 0:00:21]}  Be1 {[%clk 0:00:06]} 46. Ra7+ {[%clk 0:00:19]}  Kg8 {[%clk 0:00:05]} 47. Rc7 {[%clk 0:00:18]}  Bd2 {[%clk 0:00:03]} 48. a6 {[%clk 0:00:17]}  Bc1 {[%clk 0:00:00]} 49. a7 {[%clk 0:00:16]} 1-0


[Site "https://www.chess.com"]

[Event "Titled Tuesday Blitz August 15 Early 2023"]
[White "Daurelle, Herve"]
[Black "Urbina Perez, Juan Antonio"]
[WhiteFideId "602655"]
[BlackFideId "2217368"]
[WhiteElo "2064"]
[BlackElo "2528"]
[Result "0-1"]
[Round "1"]
[TimeControl "180+1"]
[Date "2023.08.15"]
[WhiteClock "0:00:00"]
[BlackClock "0:00:18"]
[Board "221"]

1. e4 {[%clk 0:02:57]}  c5 {[%clk 0:02:58]} 2. Nf3 {[%clk 0:02:56]}  d6 {[%clk 0:02:58]} 3. d4 {[%clk 0:02:56]}  cxd4 {[%clk 0:02:59]} 4. Nxd4 {[%clk 0:02:56]}  Nf6 {[%clk 0:03:00]} 5. Nc3 {[%clk 0:02:56]}  Nc6 {[%clk 0:03:00]} 6. Bg5 {[%clk 0:02:54]}  Qb6 {[%clk 0:03:01]} 7. Nb3 {[%clk 0:02:53]}  e6 {[%clk 0:03:00]} 8. Be3 {[%clk 0:02:47]}  Qc7 {[%clk 0:03:00]} 9. Be2 {[%clk 0:02:44]}  a6 {[%clk 0:03:00]} 10. Qd2 {[%clk 0:02:44]}  Be7 {[%clk 0:03:00]} 11. O-O-O {[%clk 0:02:42]}  O-O {[%clk 0:02:59]} 12. f4 {[%clk 0:02:33]}  b5 {[%clk 0:02:59]} 13. Bf3 {[%clk 0:02:30]}  Bb7 {[%clk 0:02:56]} 14. Rhe1 {[%clk 0:02:19]}  Rfc8 {[%clk 0:02:50]} 15. Kb1 {[%clk 0:02:18]}  Na5 {[%clk 0:02:39]} 16. Nxa5 {[%clk 0:01:58]}  Qxa5 {[%clk 0:02:40]} 17. Bd4 {[%clk 0:01:30]}  b4 {[%clk 0:02:28]} 18. Ne2 {[%clk 0:01:17]}  Qc7 {[%clk 0:02:28]} 19. e5 {[%clk 0:01:08]}  Nd5 {[%clk 0:02:15]} 20. Ng3 {[%clk 0:00:53]}  a5 {[%clk 0:02:06]} 21. f5 {[%clk 0:00:43]}  dxe5 {[%clk 0:01:31]} 22. Bxe5 {[%clk 0:00:40]}  Qc4 {[%clk 0:01:30]} 23. fxe6 {[%clk 0:00:31]}  fxe6 {[%clk 0:01:22]} 24. Ne4 {[%clk 0:00:22]}  a4 {[%clk 0:01:05]} 25. Nd6 {[%clk 0:00:10]}  Bxd6 {[%clk 0:01:02]} 26. Bxd6 {[%clk 0:00:09]}  Rc6 {[%clk 0:00:28]} 27. Bxd5 {[%clk 0:00:09]}  exd5 {[%clk 0:00:26]} 28. Qxd5+ {[%clk 0:00:08]}  Qxd5 {[%clk 0:00:26]} 29. Rxd5 {[%clk 0:00:07]}  b3 {[%clk 0:00:24]} 30. axb3 {[%clk 0:00:06]}  axb3 {[%clk 0:00:25]} 31. Rd2 {[%clk 0:00:05]}  bxc2+ {[%clk 0:00:24]} 32. Rxc2 {[%clk 0:00:05]}  Rxd6 {[%clk 0:00:24]} 33. Rc7 {[%clk 0:00:04]}  Bd5 {[%clk 0:00:18]} 34. Ree7 {[%clk 0:00:03]}  Rg6 {[%clk 0:00:18]} 35. Rxg7+ {[%clk 0:00:02]}  Rxg7 {[%clk 0:00:17]} 36. Rxg7+ {[%clk 0:00:02]}  Kxg7 {[%clk 0:00:18]} 37. Kc2 {[%clk 0:00:02]}  Bxg2 {[%clk 0:00:18]} 38. Kc3 {[%clk 0:00:03]}  Bb7 {[%clk 0:00:17]} 39. Kd4 {[%clk 0:00:04]}  Rd8+ {[%clk 0:00:18]} 40. Ke5 {[%clk 0:00:05]}  Rd2 {[%clk 0:00:18]} 41. Kf4 {[%clk 0:00:03]}  Rxh2 {[%clk 0:00:18]} 42. Kg3 {[%clk 0:00:03]}  Rxb2 {[%clk 0:00:18]} 43. Kf4 {[%clk 0:00:00]}  Rg2 {[%clk 0:00:18]} 0-1


[Site "https://www.chess.com"]

[Event "Titled Tuesday Blitz August 15 Early 2023"]
[White "Lima, Kleyton Alcantara"]
[Black "ivana_999"]
[WhiteFideId "22718397"]
[WhiteElo "2521"]
[BlackElo "2040"]
[Result "1-0"]
[Round "1"]
[TimeControl "180+1"]
[Date "2023.08.15"]
[WhiteClock "0:00:44"]
[BlackClock "0:00:26"]
[Board "226"]

1. e4 {[%clk 0:02:55]}  e6 {[%clk 0:03:00]} 2. d4 {[%clk 0:02:55]}  d5 {[%clk 0:03:01]} 3. Nc3 {[%clk 0:02:54]}  Nf6 {[%clk 0:03:00]} 4. e5 {[%clk 0:02:54]}  Ng8 {[%clk 0:03:00]} 5. a3 {[%clk 0:02:52]}  c5 {[%clk 0:02:59]} 6. dxc5 {[%clk 0:02:41]}  Bxc5 {[%clk 0:02:57]} 7. Qg4 {[%clk 0:02:38]}  g6 {[%clk 0:02:46]} 8. h4 {[%clk 0:02:33]}  Ne7 {[%clk 0:02:45]} 9. h5 {[%clk 0:02:28]}  Qb6 {[%clk 0:02:32]} 10. Qf4 {[%clk 0:02:19]}  gxh5 {[%clk 0:02:23]} 11. Rxh5 {[%clk 0:02:18]}  Ng6 {[%clk 0:02:24]} 12. Qg3 {[%clk 0:02:00]}  Nc6 {[%clk 0:02:12]} 13. Nf3 {[%clk 0:01:55]}  Bd7 {[%clk 0:01:57]} 14. Bd3 {[%clk 0:01:55]}  O-O-O {[%clk 0:01:54]} 15. Kf1 {[%clk 0:01:48]}  Nd4 {[%clk 0:01:49]} 16. b4 {[%clk 0:01:30]}  Nxf3 {[%clk 0:01:25]} 17. bxc5 {[%clk 0:01:26]}  Qxc5 {[%clk 0:01:25]} 18. Qxf3 {[%clk 0:01:21]}  Qxc3 {[%clk 0:01:24]} 19. Rb1 {[%clk 0:01:21]}  Nxe5 {[%clk 0:01:16]} 20. Qe2 {[%clk 0:01:16]}  Nxd3 {[%clk 0:01:12]} 21. cxd3 {[%clk 0:01:12]}  Bc6 {[%clk 0:01:09]} 22. Be3 {[%clk 0:01:12]}  d4 {[%clk 0:01:08]} 23. Bf4 {[%clk 0:01:12]}  Rd5 {[%clk 0:01:02]} 24. Rxd5 {[%clk 0:01:09]}  exd5 {[%clk 0:00:59]} 25. Rc1 {[%clk 0:01:03]}  Qxa3 {[%clk 0:00:55]} 26. Qe5 {[%clk 0:01:02]}  Qa5 {[%clk 0:00:39]} 27. Qxh8+ {[%clk 0:01:01]}  Kd7 {[%clk 0:00:38]} 28. Qxd4 {[%clk 0:01:01]}  Qb6 {[%clk 0:00:34]} 29. Qxb6 {[%clk 0:01:01]}  axb6 {[%clk 0:00:35]} 30. d4 {[%clk 0:01:00]}  b5 {[%clk 0:00:34]} 31. Ke2 {[%clk 0:01:00]}  b4 {[%clk 0:00:35]} 32. Rb1 {[%clk 0:00:59]}  Bb5+ {[%clk 0:00:34]} 33. Kd2 {[%clk 0:00:57]}  Bc4 {[%clk 0:00:35]} 34. Rxb4 {[%clk 0:00:57]}  b5 {[%clk 0:00:36]} 35. Kc3 {[%clk 0:00:55]}  Ke6 {[%clk 0:00:35]} 36. Rb1 {[%clk 0:00:56]}  Kf5 {[%clk 0:00:35]} 37. g3 {[%clk 0:00:56]}  Ke4 {[%clk 0:00:35]} 38. Rh1 {[%clk 0:00:54]}  Kf3 {[%clk 0:00:34]} 39. Be3 {[%clk 0:00:54]}  Ke4 {[%clk 0:00:29]} 40. Rxh7 {[%clk 0:00:54]}  f5 {[%clk 0:00:30]} 41. Re7+ {[%clk 0:00:52]}  Kf3 {[%clk 0:00:30]} 42. Rf7 {[%clk 0:00:53]}  Kg4 {[%clk 0:00:29]} 43. Rc7 {[%clk 0:00:50]}  Kf3 {[%clk 0:00:28]} 44. Rxc4 {[%clk 0:00:48]}  bxc4 {[%clk 0:00:28]} 45. Kb4 {[%clk 0:00:46]}  Ke2 {[%clk 0:00:25]} 46. Kc5 {[%clk 0:00:43]}  c3 {[%clk 0:00:20]} 47. Kxd5 {[%clk 0:00:43]}  Kd1 {[%clk 0:00:20]} 48. Ke5 {[%clk 0:00:43]}  c2 {[%clk 0:00:21]} 49. d5 {[%clk 0:00:43]}  c1=Q {[%clk 0:00:21]} 50. Bxc1 {[%clk 0:00:43]}  Kxc1 {[%clk 0:00:22]} 51. d6 {[%clk 0:00:44]}  Kd2 {[%clk 0:00:23]} 52. d7 {[%clk 0:00:44]}  Ke2 {[%clk 0:00:23]} 53. d8=Q {[%clk 0:00:44]}  Kxf2 {[%clk 0:00:24]} 54. Qh4 {[%clk 0:00:45]}  Kf3 {[%clk 0:00:24]} 55. Qf4+ {[%clk 0:00:44]}  Kg2 {[%clk 0:00:24]} 56. Qxf5 {[%clk 0:00:44]}  Kh2 {[%clk 0:00:25]} 57. g4 {[%clk 0:00:44]}  Kg2 {[%clk 0:00:26]} 58. g5 {[%clk 0:00:44]}  Kh2 {[%clk 0:00:26]} 59. g6 {[%clk 0:00:45]}  Kg2 {[%clk 0:00:26]} 60. g7 {[%clk 0:00:45]}  Kh2 {[%clk 0:00:26]} 61. Qg4 {[%clk 0:00:44]}  Kh1 {[%clk 0:00:26]} 62. g8=Q {[%clk 0:00:44]}  Kh2 {[%clk 0:00:26]} 63. Qh8# {[%clk 0:00:44]} 1-0


[Site "https://www.chess.com"]

[Event "Titled Tuesday Blitz August 15 Early 2023"]
[White "Osiecki, Stanislaw"]
[Black "LeoLV10"]
[WhiteFideId "1102990"]
[WhiteElo "2035"]
[BlackElo "2521"]
[Result "1-0"]
[Round "1"]
[TimeControl "180+1"]
[Date "2023.08.15"]
[WhiteClock "0:00:51"]
[BlackClock "0:00:33"]
[Board "227"]

1. e4 {[%clk 0:02:55]}  c6 {[%clk 0:02:57]} 2. d4 {[%clk 0:02:54]}  d5 {[%clk 0:02:53]} 3. e5 {[%clk 0:02:54]}  c5 {[%clk 0:02:53]} 4. dxc5 {[%clk 0:02:54]}  e6 {[%clk 0:02:52]} 5. Nf3 {[%clk 0:02:54]}  Bxc5 {[%clk 0:02:52]} 6. Bd3 {[%clk 0:02:54]}  Nc6 {[%clk 0:02:50]} 7. c3 {[%clk 0:02:52]}  Nge7 {[%clk 0:02:50]} 8. Bf4 {[%clk 0:02:51]}  Ng6 {[%clk 0:02:50]} 9. Bg3 {[%clk 0:02:51]}  Qc7 {[%clk 0:02:44]} 10. Qe2 {[%clk 0:02:50]}  Bb6 {[%clk 0:02:39]} 11. O-O {[%clk 0:02:50]}  O-O {[%clk 0:02:39]} 12. h4 {[%clk 0:02:49]}  Re8 {[%clk 0:02:36]} 13. h5 {[%clk 0:02:49]}  Nf8 {[%clk 0:02:36]} 14. h6 {[%clk 0:02:49]}  Ng6 {[%clk 0:02:24]} 15. hxg7 {[%clk 0:02:47]}  Bc5 {[%clk 0:02:20]} 16. b4 {[%clk 0:02:40]}  Be7 {[%clk 0:02:20]} 17. b5 {[%clk 0:02:40]}  Na5 {[%clk 0:02:19]} 18. Qd2 {[%clk 0:02:33]}  Kxg7 {[%clk 0:02:17]} 19. a4 {[%clk 0:02:28]}  Nc4 {[%clk 0:02:16]} 20. Bxc4 {[%clk 0:02:19]}  dxc4 {[%clk 0:02:12]} 21. Na3 {[%clk 0:02:19]}  b6 {[%clk 0:02:11]} 22. Nc2 {[%clk 0:02:17]}  Bb7 {[%clk 0:02:11]} 23. Ncd4 {[%clk 0:02:17]}  Rad8 {[%clk 0:02:09]} 24. Rfe1 {[%clk 0:02:16]}  h6 {[%clk 0:02:09]} 25. Qe3 {[%clk 0:02:14]}  Qc5 {[%clk 0:01:58]} 26. a5 {[%clk 0:02:05]}  Bd5 {[%clk 0:01:49]} 27. axb6 {[%clk 0:02:04]}  axb6 {[%clk 0:01:50]} 28. Ra7 {[%clk 0:02:01]}  Ra8 {[%clk 0:01:50]} 29. Rea1 {[%clk 0:01:59]}  Rxa7 {[%clk 0:01:50]} 30. Rxa7 {[%clk 0:01:59]}  Ra8 {[%clk 0:01:51]} 31. Rxa8 {[%clk 0:01:57]}  Bxa8 {[%clk 0:01:52]} 32. Nd2 {[%clk 0:01:49]}  Qd5 {[%clk 0:01:46]} 33. f3 {[%clk 0:01:44]}  Bc5 {[%clk 0:01:45]} 34. Ne4 {[%clk 0:01:36]}  Bxd4 {[%clk 0:01:42]} 35. Qxd4 {[%clk 0:01:35]}  Qxb5 {[%clk 0:01:39]} 36. Nd6 {[%clk 0:01:29]}  Qb1+ {[%clk 0:01:39]} 37. Kh2 {[%clk 0:01:29]}  Qc2 {[%clk 0:01:24]} 38. Ne8+ {[%clk 0:01:12]}  Kf8 {[%clk 0:00:41]} 39. Qd8 {[%clk 0:01:09]}  h5 {[%clk 0:00:38]} 40. Nf6+ {[%clk 0:01:09]}  Kg7 {[%clk 0:00:38]} 41. Qg8+ {[%clk 0:00:52]}  Kh6 {[%clk 0:00:32]} 42. Qh7+ {[%clk 0:00:51]}  Kg5 {[%clk 0:00:33]} 43. Qxh5# {[%clk 0:00:51]} 1-0


[Site "https://www.chess.com"]

[Event "Titled Tuesday Blitz August 15 Early 2023"]
[White "djathtaspogradec"]
[Black "Seifert, Henryk"]
[BlackFideId "1100963"]
[WhiteElo "2518"]
[BlackElo "2010"]
[Result "0-1"]
[Round "1"]
[TimeControl "180+1"]
[Date "2023.08.15"]
[WhiteClock "0:00:09"]
[BlackClock "0:00:07"]
[Board "230"]

1. e4 {[%clk 0:02:57]}  e6 {[%clk 0:02:59]} 2. b3 {[%clk 0:02:55]}  d5 {[%clk 0:02:58]} 3. Bb2 {[%clk 0:02:56]}  Nf6 {[%clk 0:02:49]} 4. e5 {[%clk 0:02:54]}  Nfd7 {[%clk 0:02:48]} 5. Nf3 {[%clk 0:02:53]}  c5 {[%clk 0:02:48]} 6. g3 {[%clk 0:02:47]}  Nc6 {[%clk 0:02:48]} 7. Bg2 {[%clk 0:02:48]}  Qc7 {[%clk 0:02:39]} 8. Qe2 {[%clk 0:02:47]}  Be7 {[%clk 0:02:29]} 9. O-O {[%clk 0:02:44]}  b6 {[%clk 0:02:25]} 10. Re1 {[%clk 0:02:37]}  Bb7 {[%clk 0:02:24]} 11. a3 {[%clk 0:02:34]}  h6 {[%clk 0:02:21]} 12. d4 {[%clk 0:02:31]}  cxd4 {[%clk 0:02:18]} 13. Nxd4 {[%clk 0:02:32]}  Nxd4 {[%clk 0:02:17]} 14. Bxd4 {[%clk 0:02:32]}  Rc8 {[%clk 0:02:15]} 15. Nc3 {[%clk 0:02:28]}  a6 {[%clk 0:02:04]} 16. b4 {[%clk 0:02:25]}  O-O {[%clk 0:01:44]} 17. Qd2 {[%clk 0:02:17]}  Nb8 {[%clk 0:01:30]} 18. Qe3 {[%clk 0:01:08]}  Nd7 {[%clk 0:01:14]} 19. Rec1 {[%clk 0:01:04]}  b5 {[%clk 0:01:10]} 20. Ne2 {[%clk 0:00:54]}  Nb8 {[%clk 0:01:06]} 21. f4 {[%clk 0:00:49]}  Nc6 {[%clk 0:01:05]} 22. c3 {[%clk 0:00:46]}  Qd7 {[%clk 0:00:53]} 23. Kh1 {[%clk 0:00:43]}  Nxd4 {[%clk 0:00:48]} 24. Nxd4 {[%clk 0:00:43]}  Rc4 {[%clk 0:00:46]} 25. Bf1 {[%clk 0:00:41]}  Rc7 {[%clk 0:00:42]} 26. Rc2 {[%clk 0:00:38]}  Rfc8 {[%clk 0:00:41]} 27. Rac1 {[%clk 0:00:38]}  a5 {[%clk 0:00:39]} 28. Bxb5 {[%clk 0:00:31]}  Qd8 {[%clk 0:00:33]} 29. f5 {[%clk 0:00:31]}  exf5 {[%clk 0:00:27]} 30. Qf3 {[%clk 0:00:27]}  g6 {[%clk 0:00:19]} 31. Bd3 {[%clk 0:00:26]}  Bg5 {[%clk 0:00:18]} 32. Re1 {[%clk 0:00:22]}  Rxc3 {[%clk 0:00:17]} 33. Rxc3 {[%clk 0:00:20]}  Rxc3 {[%clk 0:00:17]} 34. Nb5 {[%clk 0:00:21]}  Rb3 {[%clk 0:00:13]} 35. Nd6 {[%clk 0:00:20]}  Ba8 {[%clk 0:00:12]} 36. b5 {[%clk 0:00:20]}  d4 {[%clk 0:00:13]} 37. Nb7 {[%clk 0:00:16]}  Qc7 {[%clk 0:00:11]} 38. b6 {[%clk 0:00:13]}  Qxb6 {[%clk 0:00:09]} 39. Be4 {[%clk 0:00:10]}  fxe4 {[%clk 0:00:08]} 40. Qg4 {[%clk 0:00:09]}  e3 {[%clk 0:00:08]} 41. h4 {[%clk 0:00:08]}  Qxb7+ {[%clk 0:00:08]} 42. Kh2 {[%clk 0:00:09]}  Qg2# {[%clk 0:00:07]} 0-1


[Site "https://www.chess.com"]

[Event "Titled Tuesday Blitz August 15 Early 2023"]
[White "White, John S."]
[Black "Lehtosaari, Mauri"]
[WhiteFideId "2502348"]
[BlackFideId "501999"]
[WhiteElo "2007"]
[BlackElo "2518"]
[Result "1/2-1/2"]
[Round "1"]
[TimeControl "180+1"]
[Date "2023.08.15"]
[WhiteClock "0:00:03"]
[BlackClock "0:00:01"]
[Board "231"]

1. e4 {[%clk 0:02:58]}  d5 {[%clk 0:02:58]} 2. exd5 {[%clk 0:02:56]}  Qxd5 {[%clk 0:02:59]} 3. Nc3 {[%clk 0:02:56]}  Qd8 {[%clk 0:02:59]} 4. d4 {[%clk 0:02:55]}  Nf6 {[%clk 0:02:57]} 5. Nf3 {[%clk 0:02:55]}  Bg4 {[%clk 0:02:57]} 6. Be2 {[%clk 0:02:55]}  e6 {[%clk 0:02:56]} 7. O-O {[%clk 0:02:54]}  c6 {[%clk 0:02:56]} 8. Re1 {[%clk 0:02:54]}  Be7 {[%clk 0:02:56]} 9. h3 {[%clk 0:02:52]}  Bxf3 {[%clk 0:02:55]} 10. Bxf3 {[%clk 0:02:52]}  O-O {[%clk 0:02:56]} 11. Be3 {[%clk 0:02:49]}  Nbd7 {[%clk 0:02:56]} 12. Qd2 {[%clk 0:02:47]}  Nd5 {[%clk 0:02:52]} 13. Ne4 {[%clk 0:02:36]}  Nxe3 {[%clk 0:02:33]} 14. fxe3 {[%clk 0:02:34]}  Nf6 {[%clk 0:02:31]} 15. a3 {[%clk 0:02:28]}  Rc8 {[%clk 0:02:30]} 16. c4 {[%clk 0:02:25]}  a6 {[%clk 0:02:31]} 17. b4 {[%clk 0:02:20]}  Nxe4 {[%clk 0:02:22]} 18. Bxe4 {[%clk 0:02:19]}  g6 {[%clk 0:02:22]} 19. Rad1 {[%clk 0:02:15]}  Bf6 {[%clk 0:02:23]} 20. Rf1 {[%clk 0:02:11]}  Bg7 {[%clk 0:02:20]} 21. Bb1 {[%clk 0:02:09]}  Qg5 {[%clk 0:02:12]} 22. e4 {[%clk 0:02:03]}  Qxd2 {[%clk 0:02:00]} 23. Rxd2 {[%clk 0:02:02]}  Rcd8 {[%clk 0:02:00]} 24. Rfd1 {[%clk 0:01:58]}  Rd7 {[%clk 0:01:57]} 25. d5 {[%clk 0:01:47]}  exd5 {[%clk 0:01:43]} 26. exd5 {[%clk 0:01:42]}  cxd5 {[%clk 0:01:29]} 27. cxd5 {[%clk 0:01:41]}  Rfd8 {[%clk 0:01:26]} 28. Ba2 {[%clk 0:01:37]}  Be5 {[%clk 0:01:24]} 29. Re2 {[%clk 0:01:30]}  Bd6 {[%clk 0:01:24]} 30. Red2 {[%clk 0:01:24]}  Rc7 {[%clk 0:01:18]} 31. Kf2 {[%clk 0:01:19]}  Kg7 {[%clk 0:01:16]} 32. Kf3 {[%clk 0:01:14]}  Rdc8 {[%clk 0:01:11]} 33. Bb3 {[%clk 0:01:10]}  Re8 {[%clk 0:01:04]} 34. Rd3 {[%clk 0:01:05]}  Re5 {[%clk 0:01:02]} 35. R1d2 {[%clk 0:00:58]}  Rf5+ {[%clk 0:01:00]} 36. Ke2 {[%clk 0:00:57]}  Re7+ {[%clk 0:00:55]} 37. Kd1 {[%clk 0:00:56]}  Rf1+ {[%clk 0:00:53]} 38. Kc2 {[%clk 0:00:55]}  Ree1 {[%clk 0:00:50]} 39. Rd1 {[%clk 0:00:51]}  Rf2+ {[%clk 0:00:35]} 40. R1d2 {[%clk 0:00:50]}  Rf4 {[%clk 0:00:27]} 41. Rd4 {[%clk 0:00:43]}  Rf6 {[%clk 0:00:25]} 42. R4d3 {[%clk 0:00:39]}  h5 {[%clk 0:00:26]} 43. Rd1 {[%clk 0:00:37]}  Re2+ {[%clk 0:00:25]} 44. R1d2 {[%clk 0:00:37]}  Re5 {[%clk 0:00:26]} 45. Rd4 {[%clk 0:00:36]}  g5 {[%clk 0:00:24]} 46. R4d3 {[%clk 0:00:34]}  Kg6 {[%clk 0:00:22]} 47. Rd4 {[%clk 0:00:32]}  Rf1 {[%clk 0:00:21]} 48. Rd1 {[%clk 0:00:32]}  Rxd1 {[%clk 0:00:21]} 49. Rxd1 {[%clk 0:00:31]}  f5 {[%clk 0:00:20]} 50. Rd2 {[%clk 0:00:29]}  f4 {[%clk 0:00:20]} 51. Kc3 {[%clk 0:00:26]}  g4 {[%clk 0:00:20]} 52. hxg4 {[%clk 0:00:24]}  hxg4 {[%clk 0:00:21]} 53. Bc2+ {[%clk 0:00:23]}  Kg5 {[%clk 0:00:20]} 54. Bb3 {[%clk 0:00:21]}  f3 {[%clk 0:00:16]} 55. gxf3 {[%clk 0:00:21]}  gxf3 {[%clk 0:00:17]} 56. Kd3 {[%clk 0:00:20]}  Kf4 {[%clk 0:00:17]} 57. Kd4 {[%clk 0:00:17]}  Re4+ {[%clk 0:00:14]} 58. Kd3 {[%clk 0:00:16]}  Re3+ {[%clk 0:00:14]} 59. Kc4 {[%clk 0:00:15]}  Re2 {[%clk 0:00:12]} 60. Kd3 {[%clk 0:00:14]}  Re3+ {[%clk 0:00:07]} 61. Kc4 {[%clk 0:00:13]}  b5+ {[%clk 0:00:06]} 62. Kd4 {[%clk 0:00:11]}  Rxb3 {[%clk 0:00:06]} 63. Rf2 {[%clk 0:00:11]}  Rxa3 {[%clk 0:00:04]} 64. Rxf3+ {[%clk 0:00:10]}  Kg5 {[%clk 0:00:03]} 65. Rxa3 {[%clk 0:00:09]}  Bxb4 {[%clk 0:00:03]} 66. Rxa6 {[%clk 0:00:08]}  Be1 {[%clk 0:00:02]} 67. d6 {[%clk 0:00:08]}  Kf6 {[%clk 0:00:02]} 68. d7+ {[%clk 0:00:07]}  Ke7 {[%clk 0:00:02]} 69. Kc5 {[%clk 0:00:05]}  b4 {[%clk 0:00:01]} 70. Ra7 {[%clk 0:00:04]}  Bf2+ {[%clk 0:00:01]} 71. Kxb4 {[%clk 0:00:04]}  Bxa7 {[%clk 0:00:01]} 72. d8=Q+ {[%clk 0:00:03]}  Kxd8 {[%clk 0:00:01]} 1/2-1/2


[Site "https://www.chess.com"]

[Event "Titled Tuesday Blitz August 15 Early 2023"]
[White "FromTexas54"]
[Black "Samarth J Rao"]
[BlackFideId "46652370"]
[WhiteElo "2516"]
[BlackElo "1978"]
[Result "0-1"]
[Round "1"]
[TimeControl "180+1"]
[Date "2023.08.15"]
[WhiteClock "0:00:49"]
[BlackClock "0:01:40"]
[Board "232"]

1. Nf3 {[%clk 0:02:59]}  Nf6 {[%clk 0:02:59]} 2. g3 {[%clk 0:03:00]}  d5 {[%clk 0:02:57]} 3. Bg2 {[%clk 0:03:00]}  e6 {[%clk 0:02:57]} 4. O-O {[%clk 0:03:01]}  Be7 {[%clk 0:02:57]} 5. c4 {[%clk 0:03:01]}  O-O {[%clk 0:02:57]} 6. b3 {[%clk 0:03:01]}  Nbd7 {[%clk 0:02:55]} 7. Bb2 {[%clk 0:03:01]}  c5 {[%clk 0:02:54]} 8. e3 {[%clk 0:03:01]}  b6 {[%clk 0:02:54]} 9. Nc3 {[%clk 0:03:01]}  Bb7 {[%clk 0:02:54]} 10. Qe2 {[%clk 0:03:01]}  dxc4 {[%clk 0:02:53]} 11. bxc4 {[%clk 0:03:01]}  Rc8 {[%clk 0:02:46]} 12. d3 {[%clk 0:03:00]}  Qc7 {[%clk 0:02:46]} 13. Ne1 {[%clk 0:02:57]}  Bxg2 {[%clk 0:02:45]} 14. Kxg2 {[%clk 0:02:57]}  Rfd8 {[%clk 0:02:45]} 15. f4 {[%clk 0:02:57]}  Qc6+ {[%clk 0:02:43]} 16. Kg1 {[%clk 0:02:57]}  Nf8 {[%clk 0:02:42]} 17. g4 {[%clk 0:02:57]}  a6 {[%clk 0:02:34]} 18. g5 {[%clk 0:02:57]}  Ne8 {[%clk 0:02:34]} 19. Ne4 {[%clk 0:02:56]}  b5 {[%clk 0:02:29]} 20. cxb5 {[%clk 0:02:36]}  Qxb5 {[%clk 0:02:27]} 21. Rf3 {[%clk 0:02:08]}  c4 {[%clk 0:02:25]} 22. Bd4 {[%clk 0:02:03]}  cxd3 {[%clk 0:02:22]} 23. Nxd3 {[%clk 0:02:03]}  Nd6 {[%clk 0:02:22]} 24. Nf6+ {[%clk 0:01:59]}  Bxf6 {[%clk 0:02:18]} 25. gxf6 {[%clk 0:01:59]}  Nf5 {[%clk 0:02:18]} 26. fxg7 {[%clk 0:01:50]}  Ng6 {[%clk 0:02:17]} 27. a4 {[%clk 0:01:43]}  Qc4 {[%clk 0:02:12]} 28. Rc1 {[%clk 0:01:37]}  Nxd4 {[%clk 0:02:11]} 29. exd4 {[%clk 0:01:37]}  Qxd4+ {[%clk 0:02:10]} 30. Rf2 {[%clk 0:01:20]}  Qxd3 {[%clk 0:01:53]} 31. Rxc8 {[%clk 0:01:18]}  Qb1+ {[%clk 0:01:53]} 32. Rf1 {[%clk 0:01:03]}  Qb6+ {[%clk 0:01:51]} 33. Kg2 {[%clk 0:00:59]}  Rxc8 {[%clk 0:01:47]} 34. f5 {[%clk 0:00:59]}  exf5 {[%clk 0:01:43]} 35. Qd3 {[%clk 0:00:56]}  Qb2+ {[%clk 0:01:40]} 36. Rf2 {[%clk 0:00:49]}  Nf4+ {[%clk 0:01:40]} 0-1


[Site "https://www.chess.com"]